[Event "SixDays Budapest May IM 2023"]
[Site "Budapest"]
[Date "2023.05.29"]
[Round "5.4"]
[White "Nemeth, Zalan"]
[Black "Ojas Kulkarni"]
[Result "1/2-1/2"]
[Annotator "TA"]
[ECO "E04"]
[WhiteElo "2289"]
[BlackElo "2230"]
[PlyCount "76"]
[EventDate "2023.05.25"]
[EventType "tourn"]
[EventCountry "HUN"]
[SourceTitle "playchess.com"]
[Source "ChessBase"]
[SourceQuality "1"]
[TimeControl "5400+30"]

{[%evp 14,76,23,8,2,15,35,13,0,0,-1,0,54,50,27,33,49,49,49,49,46,42,86,80,83,56,98,-24,28,0,97,62,192,190,190,183,180,164,200,79,71,10,20,15,23,-89,-66,-89,-87,-62,-71,-149,-149,-150,-146,-152,-151,-151,-143,-145,-86,-103,-106,-81,-91]} 1. d4 {[%emt 0:10:30]} Nf6 {[%emt 0:00:37]} 2. c4 {[%emt 0:00:10]} e6 {[%emt 0:00:20]} 3. Nf3 {[%emt 0:00:45]} d5 {[%emt 0:03:03]} 4. g3 {[%emt 0:00:07]} dxc4 {[%emt 0:00:08]} 5. Bg2 {[%emt 0:00:04]} Bd7 {[%emt 0:00:10]} 6. Ne5 {[%emt 0:01:28]} Bc6 {[%emt 0:00:59]} 7. Nxc6 {[%emt 0:00:06]} Nxc6 {[%emt 0:00:03]} 8. O-O {[%emt 0:02:56] 8.e3 is not played anymore.} Qd7 {[%emt 0:01:58] E04: Open Catalan: 5 Nf3.} 9. e3 {[%emt 0:01:05]} Nd5 {[%emt 0:01:35]} 10. Qe2 {[%emt 0:06:52]} h5 {[%emt 0:04:38] [#] The position is equal.} 11. Rd1 $146 {[%emt 0:03:29]} ({Predecessor:} 11. Qxc4 h4 12. Nc3 O-O-O 13. Bd2 f5 14. Rac1 g5 15. e4 Nb6 16. Qd3 hxg3 17. fxg3 {0-1 Xu,X (2571)-Erigaisi,A (2681) Chess.com Rapid Wk17 Swiss 2022 (8)}) 11... O-O-O {[%emt 0:07:55]} 12. Nd2 {[%emt 0:01:37]} e5 {[%emt 0:06:47]} (12... h4 $11) 13. Nxc4 $14 {[%emt 0:05:40]} exd4 {[%emt 0:01:11]} 14. exd4 {[%emt 0:00:13]} f6 {[%emt 0:12:13]} 15. Ne3 {[%emt 0:04:42]} Nce7 {[%emt 0:00:19]} 16. Bd2 $36 {[%emt 0:05:32][%mdl 2048] White is more active.} h4 {[%emt 0:13:49]} 17. Qf3 {[%emt 0:00:34]} (17. Rac1 {keeps more tension.} Kb8 18. Ba5 hxg3 19. hxg3 Rc8 20. Qf3) 17... hxg3 {[%emt 0:02:24]} 18. hxg3 {[%emt 0:00:05]} (18. Qxg3 g5 $15) (18. fxg3 c6 $11) 18... c6 {[%emt 0:00:27]} 19. Rac1 {[%emt 0:09:36]} Kb8 {[%emt 0:00:33] [#]} 20. Nc4 {[%emt 0:05:11]} (20. b4 $1 $16) 20... Nc8 {[%emt 0:04:54]} ({Black should try} 20... Nf5) 21. Qb3 {[%emt 0:03:27]} Re8 {[%emt 0:11:22]} (21... Nce7 $11) 22. a4 $16 {[%emt 0:03:50]} Ncb6 {[%emt 0:07:34]} ({Better is} 22... Re2 $14) 23. Nxb6 $18 {[%emt 0:12:39]} axb6 {[%emt 0:02:51] [#]} 24. a5 $1 {[%emt 0:04:55]} bxa5 {[%emt 0:03:12]} 25. Bxa5 {[%emt 0:02:55][%cal Oc1c6]} Rh5 {[%emt 0:02:23][%cal Bh8h5,Bh5h4,Bh4g4][%mdl 32]} 26. Bd2 {[%emt 0:03:03] This pair of bishops is nice.} (26. Bf3 $18 Rf5 27. Bg4 {[%mdl 64] Skewer}) 26... Bd6 $16 {[%emt 0:09:55]} 27. Qf3 {[%emt 0:03:07]} (27. Bf3 $16 Reh8 28. Bxh5 Rxh5 29. Qf3 (29. Re1 Rh8 $16)) 27... Reh8 $11 {[%emt 0:00:19] [#]} 28. b4 $1 {[%emt 0:00:01][%cal Ob4b5] Hoping for b5!} g5 {[%emt 0:00:28] ...g4 is the strong threat.} (28... Bxb4 29. Rb1 Bd6 30. Rb2) (28... Nc7 29. Ra1) 29. g4 {[%emt 0:01:13]} (29. b5 $11 {remains equal.} g4 30. Qe4 (30. Qb3 $2 Qh7 $19) 30... cxb5 31. Re1) 29... Rh4 {[%emt 0:00:16]} 30. b5 $1 {[%emt 0:01:06]} Qxg4 {[%emt 0:00:13]} ({Much less strong is} 30... Rxg4 31. bxc6 bxc6 32. Ra1 $11) 31. Qxg4 {[%emt 0:00:23]} Rxg4 {[%emt 0:00:08]} 32. f3 {[%emt 0:01:05]} (32. Kf1 $142) 32... Rxd4 $17 {[%emt 0:01:42]} 33. bxc6 {[%emt 0:00:03]} b6 {[%emt 0:00:34]} 34. Be1 {[%emt 0:01:17]} ({But not} 34. Bxg5 $2 Bc5 35. c7+ Kc8 $19) 34... Rxd1 {[%emt 0:00:51][%mdl 64] Deflection} 35. Rxd1 {[%emt 0:00:04]} Bc5+ {[%emt 0:00:01]} 36. Bf2 {[%emt 0:00:08][%cal Of2c5] Bxc5! would be deadly.} Bxf2+ {[%emt 0:01:22]} (36... Nf4 $142 {Threatens to win with ...Bxf2+.} 37. Bf1 Kc7) 37. Kxf2 {[%emt 0:00:01]} Nf4 {[%emt 0:00:02] Strongly threatening ...Rh2.} 38. Bf1 {[%emt 0:00:12]} Kc7 {[%emt 0:00:55] Black used his chance.   Weighted Error Value: White=0.25 (precise) /Black=0.21 (precise)} 1/2-1/2

[Event "SixDays Budapest May IM 2023"]
[Site "Budapest"]
[Date "2023.05.29"]
[Round "5.5"]
[White "Horvath, David"]
[Black "Manu David Suthandram R"]
[Result "1-0"]
[Annotator "TA"]
[ECO "D33"]
[WhiteElo "2362"]
[BlackElo "2332"]
[PlyCount "85"]
[EventDate "2023.05.25"]
[EventType "tourn"]
[EventCountry "HUN"]
[SourceTitle "playchess.com"]
[Source "ChessBase"]
[SourceQuality "1"]
[TimeControl "5400+30"]

{[%evp 14,85,73,64,87,71,86,72,68,82,124,121,136,152,150,126,127,133,131,132,150,129,124,135,152,158,195,186,185,185,237,235,231,237,238,245,238,191,202,202,234,225,234,234,231,232,231,205,251,251,341,314,294,229,283,271,256,248,777,377,369,369,369,370,389,349,937,935,856,682,29967,29968,29981,29982]} 1. Nf3 {[%emt 0:00:33]} Nf6 {[%emt 0:14:26]} 2. c4 {[%emt 0:00:55]} e6 {[%emt 0:00:19]} 3. Nc3 {[%emt 0:00:24]} d5 {[%emt 0:00:07]} 4. d4 {[%emt 0:00:07]} c5 {[%emt 0:00:06]} 5. cxd5 {[%emt 0:00:07]} exd5 {[%emt 0:00:08]} 6. g3 {[%emt 0:00:07]} Nc6 {[%emt 0:00:15]} 7. Bg2 {[%emt 0:00:07]} Bg4 {[%emt 0:00:16] 7...cxd4 gains popularity.} 8. Bg5 {[%emt 0:05:59]} Be6 {[%emt 0:17:02] D33: Tarrasch Defence: 6 g3 sidelines.} 9. O-O {[%emt 0:06:42]} cxd4 {[%emt 0:13:43]} 10. Nxd4 {[%emt 0:02:11]} Be7 {[%emt 0:00:52] White is better.} 11. Qa4 {[%emt 0:53:50]} Qb6 {[%emt 0:23:10]} 12. Nxc6 {[%emt 0:15:11] [#]} bxc6 $146 {[%emt 0:06:44]} ({Predecessor:} 12... Qxc6 13. Qxc6+ bxc6 14. Rac1 Kd7 15. Na4 Rhc8 16. Nc5+ Bxc5 17. Rxc5 Ke7 18. Rfc1 Kd6 19. Bxf6 gxf6 {1-0 MacMillen,A (1413)-Brooksbank,K (1800) SCO op-A email 2008}) 13. Bxf6 {[%emt 0:01:22]} Bxf6 {[%emt 0:00:05]} 14. Nxd5 {[%emt 0:01:54]} Bxd5 {[%emt 0:00:21]} 15. Bxd5 {[%emt 0:00:06]} O-O {[%emt 0:00:08]} 16. Bxc6 {[%emt 0:01:05]} Rad8 {[%emt 0:03:32]} 17. Rad1 {[%emt 0:00:39]} Bxb2 {[%emt 0:02:59]} 18. Bd5 {[%emt 0:01:50]} Kh8 {[%emt 0:05:19]} 19. Rd3 {[%emt 0:01:07]} f5 {[%emt 0:00:37]} 20. e3 {[%emt 0:01:47]} Qc5 {[%emt 0:02:24]} 21. Rfd1 {[%emt 0:00:32][%cal Bf1d1,Bd1d3,Bd3e3][%mdl 32]} g5 {[%emt 0:00:36]} (21... Rb8 $142 22. Bb3 a5) 22. Bf3 $18 {[%emt 0:01:20]} Rxd3 {[%emt 0:00:52]} 23. Rxd3 {[%emt 0:00:05]} f4 {[%emt 0:00:09] Black is weak on the light squares} 24. exf4 {[%emt 0:01:03]} ({But not} 24. gxf4 gxf4 25. e4 (25. exf4 Qc1+ 26. Bd1 Qxf4 $14) 25... Rb8 $16) 24... gxf4 {[%emt 0:00:38]} 25. Qe4 {[%emt 0:00:24]} ({Less strong is} 25. gxf4 Qc1+ 26. Bd1 Qxf4 27. Qxf4 (27. Qxa7 Qe4 $11) 27... Rxf4 $14) 25... fxg3 {[%emt 0:03:39]} 26. hxg3 {[%emt 0:00:20]} Qf5 {[%emt 0:00:53]} 27. Qe2 {[%emt 0:00:48]} Qe5 {[%emt 0:00:51]} 28. Re3 {[%emt 0:00:24]} Qf6 {[%emt 0:00:42]} 29. Kg2 {[%emt 0:00:52]} Bd4 {[%emt 0:00:12]} 30. Re4 {[%emt 0:00:34]} Bb6 {[%emt 0:01:06]} 31. a4 {[%emt 0:00:48]} Bc5 {[%emt 0:00:48]} 32. Re5 {[%emt 0:00:30]} Bd4 {[%emt 0:00:19]} 33. Re7 {[%emt 0:00:42] [#] aiming for Qe4.} Rf7 {[%emt 0:01:12]} 34. Re6 {[%emt 0:00:17]} Qf5 {[%emt 0:00:09]} 35. Rd6 {[%emt 0:00:37]} Bb6 {[%emt 0:00:19]} (35... Bg7 36. Rd8+ Rf8) 36. Rd5 {[%emt 0:00:16]} (36. Qb2+ $142 Rg7 37. Bd5) 36... Qf6 {[%emt 0:00:39]} 37. a5 {[%emt 0:00:27]} Bd4 {[%emt 0:00:24]} 38. Qe8+ {[%emt 0:00:17]} Rf8 {[%emt 0:00:28]} 39. Qe4 {[%emt 0:00:15] Active counter play!} Rd8 $2 {[%emt 0:00:38]} (39... Bc3 40. Rd7 Qf5) 40. Rf5 {[%emt 0:01:29]} Qg7 {[%emt 0:00:49]} 41. Qf4 {[%emt 0:00:33] [#] And now Be4 would win.} h6 {[%emt 0:02:21]} 42. Be4 {[%emt 0:00:19]} Re8 {[%emt 0:00:27]} 43. Rf7 {[%emt 0:00:45] Black got outplayed after the opening.   Weighted Error Value: White=0.24 (precise) /Black=0.39} 1-0

[Event "SixDays Budapest May IM 2023"]
[Site "Budapest"]
[Date "2023.05.30"]
[Round "6.1"]
[White "Szeberenyi, Adam"]
[Black "Manu David Suthandram R"]
[Result "1-0"]
[Annotator "TA"]
[ECO "D55"]
[WhiteElo "2338"]
[BlackElo "2332"]
[PlyCount "67"]
[EventDate "2023.05.25"]
[EventType "tourn"]
[EventCountry "HUN"]
[SourceTitle "playchess.com"]
[Source "ChessBase"]
[SourceQuality "1"]
[TimeControl "5400+30"]

{[%evp 16,67,22,28,49,66,62,29,39,41,47,48,43,49,52,56,54,56,52,25,43,43,72,0,0,0,0,0,11,0,7,0,0,0,0,0,0,0,0,0,0,0,0,0,60,68,433,423,403,209,397,382,614,593]} 1. d4 {[%emt 0:00:33]} Nf6 {[%emt 0:19:36]} 2. c4 {[%emt 0:00:06]} e6 {[%emt 0:00:08]} 3. Nf3 {[%emt 0:00:04]} d5 {[%emt 0:00:08]} 4. Nc3 {[%emt 0:00:04]} Be7 {[%emt 0:00:22]} 5. Bg5 {[%emt 0:00:12]} O-O {[%emt 0:01:00]} 6. e3 {[%emt 0:00:06]} dxc4 {[%emt 0:00:27]} 7. Bxc4 {[%emt 0:00:23]} b6 {[%emt 0:00:23]} 8. Qe2 {[%emt 0:09:59]} Bb7 {[%emt 0:00:52]} 9. O-O {[%emt 0:00:30]} Ne4 {[%emt 0:00:22] D53: Queen's Gambit Declined: 4 Bg5 Be7: Early deviations.} 10. Nxe4 {[%emt 0:01:14]} Bxe4 {[%emt 0:00:13]} 11. Bxe7 {[%emt 0:00:39]} Qxe7 {[%emt 0:00:07] White has an edge.} 12. Rac1 {[%emt 0:00:38]} Bb7 {[%emt 0:08:17] [#]} 13. Rfd1 $146 {[%emt 0:16:20]} ({Predecessor:} 13. Rc3 c6 14. Bd3 Nd7 15. Be4 Rac8 16. Qc2 Nf6 17. Bxc6 Bxc6 18. Rxc6 Rxc6 19. Qxc6 Qb4 20. Qc2 Nd5 21. a3 Qd6 22. Rc1 Rd8 23. g3 f5 24. Ne5 h6 25. Qe2 Nf6 26. Qa6 {1-0 Kozul,Z (2593)-Cassidy,J EU-Cup 24th Kallithea 2008 (2)}) 13... Rd8 {[%emt 0:30:20]} 14. Bd3 {[%emt 0:03:56]} g6 {[%emt 0:03:25]} 15. Rc3 {[%emt 0:06:02][%cal Ob2b4]} c5 {[%emt 0:03:18]} 16. dxc5 {[%emt 0:02:34]} bxc5 {[%emt 0:00:06]} 17. Bb5 {[%emt 0:00:54]} Rxd1+ {[%emt 0:04:40]} 18. Qxd1 {[%emt 0:00:03]} Nc6 {[%emt 0:15:08][%cal Bb8c6,Bc6b4,Bb4a2][%mdl 32]} 19. Qc1 {[%emt 0:03:50] White is more active.} (19. a3 $16) 19... Nb4 $11 {[%emt 0:00:48]} 20. Rxc5 {[%emt 0:00:35] [#] Black must now prevent Rc7.} Nxa2 {[%emt 0:02:57]} 21. Qc4 {[%emt 0:00:39] aiming for Rc7.} Qd6 {[%emt 0:01:10]} 22. Ne5 {[%emt 0:13:06]} Qd1+ {[%emt 0:00:06]} 23. Qf1 {[%emt 0:00:05]} Qd6 {[%emt 0:00:04]} 24. Nd7 {[%emt 0:07:17]} Rd8 {[%emt 0:03:27]} 25. Rc4 {[%emt 0:00:08]} ({But not} 25. Nf6+ $2 Kg7 26. Rc4 Kxf6 $19) 25... e5 {[%emt 0:01:14]} 26. f4 {[%emt 0:07:42]} Rxd7 {[%emt 0:02:06]} 27. fxe5 $1 {[%emt 0:00:39]} Qe7 {[%emt 0:00:09]} 28. Bxd7 {[%emt 0:00:38]} Qxd7 {[%emt 0:00:03]} 29. Rd4 {[%emt 0:00:25]} Qc6 {[%emt 0:00:35]} (29... Qc7 $11) 30. h4 $40 {[%emt 0:04:55][%mdl 128] [#] And now Rd6 would win. White has some attack.} Qc1 $2 {[%emt 0:02:19][%mdl 8192] This move loses the game for Black.} (30... Kf8 $1 $14) 31. Qxc1 {[%emt 0:03:09]} ({And not} 31. Rd7 Qxe3+ 32. Qf2 Qxf2+ 33. Kxf2 Bc6 34. Rxa7 Nb4 $11) 31... Nxc1 {[%emt 0:00:06]} 32. Rd8+ {[%emt 0:00:03]} (32. Rd7 Be4 $11) 32... Kg7 {[%emt 0:00:17]} 33. e6 {[%emt 0:00:02][%cal Be5e6,Be6f7][%mdl 32] exf7 would be deadly.} ({Not} 33. Rd7 Be4 $16) 33... Kf6 {[%emt 0:00:57]} (33... fxe6 $2 34. Rd7+ Kf6 35. Rxb7 $18) (33... Ba6 34. e7 Bb5) 34. exf7 {[%emt 0:00:06] Weighted Error Value: White=0.06 (flawless) /Black=0.45} 1-0

[Event "SixDays Budapest May IM 2023"]
[Site "Budapest"]
[Date "2023.05.30"]
[Round "6.2"]
[White "Ojas Kulkarni"]
[Black "Horvath, David"]
[Result "1/2-1/2"]
[Annotator "TA"]
[ECO "B10"]
[WhiteElo "2230"]
[BlackElo "2362"]
[PlyCount "68"]
[EventDate "2023.05.25"]
[EventType "tourn"]
[EventCountry "HUN"]
[SourceTitle "playchess.com"]
[Source "ChessBase"]
[SourceQuality "1"]
[TimeControl "5400+30"]

{[%evp 22,68,45,42,39,4,7,0,0,0,0,-20,-27,-28,0,0,15,10,9,13,20,16,32,0,0,0,0,0,22,0,27,5,6,6,9,0,0,0,0,0,0,0,0,0,0,-8,9,11,8]} 1. e4 {[%emt 0:00:51]} c6 {[%emt 0:01:25]} 2. c4 {[%emt 0:01:34]} d5 {[%emt 0:00:18]} 3. exd5 {[%emt 0:00:06]} cxd5 {[%emt 0:00:04]} 4. cxd5 {[%emt 0:00:05]} Nf6 {[%emt 0:03:32]} 5. Nc3 {[%emt 0:00:19]} Nxd5 {[%emt 0:00:36]} 6. Nf3 {[%emt 0:00:16]} e6 {[%emt 0:07:42]} 7. d4 {[%emt 0:00:55]} Be7 {[%emt 0:00:10]} 8. Bd3 {[%emt 0:00:11]} Nc6 {[%emt 0:01:40]} 9. O-O {[%emt 0:00:32]} O-O {[%emt 0:00:57]} 10. a3 {[%emt 0:03:56]} Nxc3 {[%emt 0:15:13]} 11. bxc3 {[%emt 0:00:12]} Bf6 {[%emt 0:00:36]} 12. Re1 {[%emt 0:08:03] was the old line (12.Qe2).} b6 {[%emt 0:03:40] D42: Queen's Gambit Declined: Semi-Tarrasch: 5 cxd5 Nxd5 6 e3 Nc6 7 Bd3 .} 13. Qc2 {[%emt 0:00:28]} g6 $1 {[%emt 0:03:28] [#]} 14. h4 $1 {[%emt 0:00:29][%cal Bh2h4,Bh4h5][%mdl 32]} Bb7 {[%emt 0:07:15]} 15. h5 {[%emt 0:03:03][%cal Rh5g6]} Ne7 {[%emt 0:09:24] [#]} 16. Bh6 $146 {[%emt 0:13:40]} ({Predecessor:} 16. hxg6 hxg6 17. Ne5 Rc8 18. Bh6 Bg7 19. Qd2 Nf5 20. Bg5 Qc7 21. Rac1 f6 22. Nxg6 fxg5 23. Rxe6 {½-½ Buchkremer,F (2090)-Tocklin,T (1885) Arctic Chess Challenge 2010 (5)}) 16... Bxf3 {[%emt 0:15:40]} 17. Bxf8 {[%emt 0:11:24]} Qxf8 {[%emt 0:07:24]} 18. gxf3 {[%emt 0:00:08]} Qh6 {[%emt 0:01:23] White must now prevent ...Nd5.} (18... Nd5 $5 {[%cal Rf8h6]}) 19. hxg6 {[%emt 0:05:14]} hxg6 {[%emt 0:00:44]} 20. Be4 {[%emt 0:00:42]} Rc8 {[%emt 0:02:59]} 21. Qd3 {[%emt 0:01:24]} Kg7 {[%emt 0:02:20]} 22. Rad1 {[%emt 0:04:20]} ({Much weaker is} 22. Qe3 Bg5 23. Qd3 Bd2 $15) 22... Qh3 {[%emt 0:04:04]} 23. c4 {[%emt 0:04:23]} Rh8 {[%emt 0:01:36][%csl Gh8][%cal Rh3h1] [#]} 24. f4 {[%emt 0:00:45]} Qh2+ {[%emt 0:01:10]} 25. Kf1 {[%emt 0:00:05]} Qxf4 {[%emt 0:01:05]} 26. d5 {[%emt 0:01:30]} (26. Qg3 $5 {[%cal Rg3f4]} Qxg3 27. fxg3 $14) 26... exd5 {[%emt 0:01:03] The position is equal.} ({Not} 26... Rh2 27. Qg3 Qxg3 28. fxg3 $16) 27. cxd5 {[%emt 0:00:07] d6 would be deadly.} Qd6 $1 {[%emt 0:00:38]} (27... Rh2 $2 28. Qg3 Qh6 29. d6 $18) 28. Ke2 {[%emt 0:05:10]} Rc8 {[%emt 0:03:38]} 29. Rc1 {[%emt 0:01:23] Wards off Rc3} Re8 {[%emt 0:00:33]} 30. Kf1 {[%emt 0:05:20]} Rh8 {[%emt 0:00:16][%cal Be8h8,Bh8h5,Bh5f5,Bf5f4][%mdl 32]} 31. Bg2 {[%emt 0:03:11]} Rh5 {[%emt 0:01:22]} 32. Qb3 {[%emt 0:08:51]} Rf5 {[%emt 0:01:21]} (32... Nxd5 $2 33. Rcd1 $18) 33. Red1 {[%emt 0:01:25] Against Bd4} Rf4 {[%emt 0:00:40]} 34. Rc4 {[%emt 0:01:01] Inhibits Bd4.} Nf5 {[%emt 0:00:27] A balanced but interesting game.   Weighted Error Value: White=0.07 (flawless) /Black=0.04 (flawless)} 1/2-1/2

[Event "SixDays Budapest May IM 2023"]
[Site "Budapest"]
[Date "2023.05.30"]
[Round "6.3"]
[White "Dudognon, Thibault"]
[Black "Nemeth, Zalan"]
[Result "1-0"]
[Annotator "TA"]
[ECO "C42"]
[WhiteElo "2325"]
[BlackElo "2289"]
[PlyCount "162"]
[EventDate "2023.05.25"]
[EventType "tourn"]
[EventCountry "HUN"]
[SourceTitle "playchess.com"]
[Source "ChessBase"]
[SourceQuality "1"]
[TimeControl "5400+30"]

{[%evp 13,162,22,20,23,22,0,26,1,20,0,28,0,60,51,75,68,99,67,88,48,141,109,118,108,106,94,123,110,114,118,188,105,93,85,85,83,78,78,78,78,83,83,83,83,83,83,83,83,83,83,83,83,83,83,104,83,83,83,83,51,83,83,83,68,83,68,83,44,76,70,76,58,101,101,100,99,101,101,107,123,114,128,116,69,69,33,257,239,257,241,267,273,272,252,237,230,231,236,231,150,276,276,5493,5030,12838,276,2161,150,150,150,150,150,150,150,150,150,150,150,150,150,150,150,150,150,150,113,113,0,3,0,0,0,0,0,0,0,0,0,0,0,0,0,29971,0,29997,29998,29998,29993,29997,29998,29998]} 1. e4 {[%emt 0:00:38]} e5 {[%emt 0:00:41]} 2. Nf3 {[%emt 0:00:04]} Nf6 {[%emt 0:00:03]} 3. Nxe5 {[%emt 0:00:18]} d6 {[%emt 0:00:05]} 4. Nf3 {[%emt 0:00:02]} Nxe4 {[%emt 0:00:04]} 5. Nc3 {[%emt 0:00:02]} Nxc3 {[%emt 0:00:07]} 6. dxc3 {[%emt 0:00:04]} Be7 {[%emt 0:00:04]} 7. Be3 {[%emt 0:00:07]} Nd7 {[%emt 0:00:22]} 8. Qd2 {[%emt 0:00:10] C42: Petroff Defence: 3 Nxe5 and unusual White 3rd moves.} O-O {[%emt 0:00:20]} 9. O-O-O {[%emt 0:00:04]} Nf6 {[%emt 0:00:07] The main line 9...Nf6 scores better than 9...c6.} 10. Kb1 {[%emt 0:05:40] White has an edge.} c5 {[%emt 0:00:25]} 11. Bd3 {[%emt 0:03:21]} Be6 {[%emt 0:03:16]} 12. h4 {[%emt 0:04:14]} c4 {[%emt 0:01:48]} (12... Rc8 $11) 13. Be2 {[%emt 0:01:36]} Ne4 {[%emt 0:00:02]} 14. Qe1 {[%emt 0:02:05][%cal Of3g5] [#]} b5 $146 {[%emt 0:00:39]} ({Predecessor:} 14... Qc8 15. Ng5 Bf5 16. f3 Nxg5 17. hxg5 Qe6 18. Qf2 b5 19. g4 Bg6 20. f4 f5 21. Bf3 Kh8 22. Bd5 Qd7 23. Rxh7+ Bxh7 24. Rh1 Bxg5 25. fxg5 Qe8 26. Rxh7+ {1-0 Botea,D (1740)-Cosac,R (1765) ROM-ch U12 Calimanesti Caciulata 2019 (9)}) 15. Nd4 {[%emt 0:04:13]} d5 {[%emt 0:02:52]} 16. Bf3 {[%emt 0:04:13]} (16. Nxb5 Qa5 17. f3 Qxb5 $15) 16... Nf6 {[%emt 0:02:37]} (16... Qd7 $14) 17. Nc6 {[%emt 0:10:32][%mdl 64] Discovered Attack, Double Attack} (17. Nxb5 Bd7 $16) 17... Qc7 {[%emt 0:00:19]} 18. Nxe7+ {[%emt 0:00:03]} Qxe7 {[%emt 0:00:05]} 19. Bg5 {[%emt 0:00:06][%cal Od1d5]} Rfe8 {[%emt 0:03:47]} 20. Qe5 $1 {[%emt 0:04:30]} Rad8 {[%emt 0:09:50]} 21. Rd4 {[%emt 0:05:32]} Rd7 {[%emt 0:03:16]} (21... h6 $16 {is a better defense.}) 22. a3 {[%emt 0:06:48]} (22. Rf4 $18) 22... h6 $16 {[%emt 0:01:21] [#]} 23. Ka2 $1 {[%emt 0:09:48][%cal Od4f4] Hoping for Rf4! White is more active.} Kf8 {[%emt 0:10:49]} 24. Bxf6 {[%emt 0:06:15]} Qxf6 {[%emt 0:00:06]} 25. Qxf6 {[%emt 0:00:03]} gxf6 {[%emt 0:00:03]} 26. Rhd1 {[%emt 0:00:26][%cal Rf3d5]} Red8 {[%emt 0:03:09]} 27. Kb1 {[%emt 0:04:14]} f5 {[%emt 0:00:22]} 28. Kc1 {[%emt 0:01:38]} Ke7 {[%emt 0:00:46]} 29. Kd2 {[%emt 0:00:18]} Kf6 {[%emt 0:01:15]} 30. Ke3 {[%emt 0:00:08]} a6 {[%emt 0:00:43]} 31. Kf4 {[%emt 0:00:38]} Rg8 {[%emt 0:01:46]} 32. g3 {[%emt 0:00:31]} (32. Bxd5 $2 Rg4+ 33. Ke3 Rxd4 34. Rxd4 Rxd5 $19) 32... a5 {[%emt 0:03:29]} 33. Ke3 {[%emt 0:02:59][%cal Rf3d5]} (33. Bxd5 $2 Rg4+ 34. Ke3 Rxd4 35. cxd4 Bxd5 $19) 33... Rgd8 {[%emt 0:05:54]} 34. Bg2 {[%emt 0:00:22]} (34. b3 {simplifies} Ke7 35. Rb1 cxb3 36. cxb3 Rc7 37. Kd2) 34... Ke5 {[%emt 0:04:49]} 35. R1d2 {[%emt 0:01:30]} Rd6 {[%emt 0:04:05]} 36. Kf3 {[%emt 0:05:13]} Rb6 {[%emt 0:02:12]} 37. Ke2 {[%emt 0:02:01]} Rbd6 {[%emt 0:01:00]} 38. Kd1 {[%emt 0:00:21]} R6d7 {[%emt 0:06:35]} 39. Kc1 {[%emt 0:00:18]} Rg8 {[%emt 0:00:38]} 40. Rd1 {[%emt 0:07:00]} Rgd8 {[%emt 0:01:23]} 41. Bf1 {[%emt 0:02:01]} Kf6 {[%emt 0:01:45]} 42. b3 {[%emt 0:03:04]} Rc7 {[%emt 0:05:34]} 43. bxc4 {[%emt 0:02:09]} bxc4 {[%emt 0:00:02] [#]} 44. Rxc4 $1 {[%emt 0:00:42]} Rxc4 {[%emt 0:07:15]} (44... Rcc8 45. Rxc8) 45. Bxc4 {[%emt 0:00:07][%mdl 4160] Endgame Pin. KRB-KRB} f4 {[%emt 0:00:33]} 46. gxf4 {[%emt 0:01:47]} Rg8 {[%emt 0:04:14]} 47. Bxd5 {[%emt 0:00:36]} Rg4 {[%emt 0:00:02][%csl LRf4,LRh4]} 48. h5 {[%emt 0:02:06]} ({Better is} 48. Bxe6 $16 fxe6 49. f5) 48... Rxf4 $14 {[%emt 0:00:05]} 49. Bxe6 {[%emt 0:00:48]} fxe6 {[%emt 0:00:14] KR-KR} (49... Kxe6 $14 50. Rd8 Rh4) 50. Rg1 $18 {[%emt 0:00:13]} Rxf2 {[%emt 0:00:53]} 51. Rg6+ {[%emt 0:00:06]} Kf7 {[%emt 0:00:02]} 52. Rxh6 {[%emt 0:00:06]} Rh2 {[%emt 0:02:07]} 53. Kb2 {[%emt 0:01:13] Strongly threatening c4.} Rh4 {[%emt 0:00:47]} 54. Rh7+ {[%emt 0:00:55]} Kf6 {[%emt 0:02:29] [#]} 55. h6 $1 {[%emt 0:00:52][%cal Bh5h6,Bh6h7][%mdl 32]} e5 {[%emt 0:00:45]} 56. Ra7 {[%emt 0:00:59]} Kf5 {[%emt 0:01:33]} (56... e4 $16) 57. h7 {[%emt 0:01:06]} (57. Rxa5 Rxh6 58. c4 Re6 $16) 57... Kf4 $2 {[%emt 0:00:10]} (57... a4 58. c4 Ke6) 58. c4 {[%emt 0:00:23]} ({Stronger than} 58. Rxa5 Rxh7 59. c4 e4 $11) 58... Ke4 {[%emt 0:01:00]} 59. Re7 $2 {[%emt 0:00:35]} ({Weaker is} 59. Rxa5 Rxh7 60. a4 Re7 $16) (59. Rd7 {White threatens c5 and mate.} Kf5 60. c5) 59... Rh3 $2 {[%emt 0:00:15]} (59... Kd4 60. c5 Kxc5) 60. c5 $2 {[%emt 0:00:07]} (60. Rd7 $18 {and the rest is easy. c5 is the strong threat.} Kf5 61. c5) 60... Kd5 $16 {[%emt 0:00:04]} 61. c6 {[%emt 0:01:53][%mdl 64] Deflection} Kxc6 {[%emt 0:00:02]} 62. Rxe5 {[%emt 0:00:04]} Rxh7 {[%emt 0:00:08]} 63. Rxa5 {[%emt 0:00:05]} Rh3 {[%emt 0:00:20]} 64. Rg5 {[%emt 0:00:05]} Kb6 {[%emt 0:00:03]} 65. c3 {[%emt 0:00:29]} Rh2+ {[%emt 0:00:18]} 66. Kb3 {[%emt 0:00:05]} Rh1 {[%emt 0:00:06]} 67. a4 {[%emt 0:00:09]} Rb1+ {[%emt 0:00:11]} 68. Kc4 {[%emt 0:00:10] White wants to mate with Rb5+.} Rh1 {[%emt 0:00:12]} 69. a5+ {[%emt 0:00:32]} Ka6 {[%emt 0:00:01]} 70. Kc5 {[%emt 0:01:40]} (70. Re5 $16) 70... Kxa5 $11 {[%emt 0:00:30]} 71. Kc6+ {[%emt 0:01:14]} Ka4 {[%emt 0:03:43]} 72. c4 {[%emt 0:00:36]} Kb4 {[%emt 0:00:04]} 73. c5 {[%emt 0:00:14] Kb7 would kill now.} Ka5 $1 {[%emt 0:01:13]} 74. Rg6 {[%emt 0:00:32]} Ka6 {[%emt 0:00:40]} 75. Kc7+ {[%emt 0:00:39]} Ka7 {[%emt 0:00:04]} 76. Rd6 {[%emt 0:00:09]} Rh5 {[%emt 0:02:18]} 77. c6 {[%emt 0:00:17] Threatening mate with Kc8.} Rh7+ $2 {[%emt 0:00:55][%mdl 8192] [#]} (77... Rh8 $11) 78. Rd7 $2 {[%emt 0:00:06]} (78. Kc8 $1 {mates} Rh4 79. c7 Rh8+ 80. Rd8 Rh7 81. Rd4 Rh6 82. Kd7 Rh7+ 83. Kc8) 78... Rg7 $2 {[%mdl 8192]} (78... Rh4 $11) 79. Rxg7 {[%emt 0:00:55] White mates.} Ka6 {[%emt 0:00:49]} 80. Re7 {[%emt 0:01:33]} Ka7 {[%emt 0:01:54]} 81. Rd7 {[%emt 0:00:00]} Ka6 {[%emt 0:01:17] Weighted Error Value: White=0.38/Black=0.25 (precise)} 1-0